[Event "Titled Tuesday Blitz May 16 Late 2023"]
[White "Ziatdinov, Raset"]
[Black "Karimov, Alisher"]
[WhiteFideId "2015323"]
[BlackFideId "14700280"]
[WhiteElo "2220"]
[BlackElo "2186"]
[Result "0-1"]
[Round "05"]
[TimeControl "180+2"]
[Date "2023.05.16"]
[WhiteClock "0:00:36"]
[BlackClock "0:00:25"]

1. e4 {[%clk 0:03:00]}  c6 {[%clk 0:02:55]} 2. d4 {[%clk 0:03:00]}  d5 {[%clk 0:02:55]} 3. Nc3 {[%clk 0:03:01]}  dxe4 {[%clk 0:02:54]} 4. Nxe4 {[%clk 0:03:02]}  Nf6 {[%clk 0:02:55]} 5. Nxf6+ {[%clk 0:03:02]}  exf6 {[%clk 0:02:56]} 6. c3 {[%clk 0:03:03]}  Bd6 {[%clk 0:02:56]} 7. Bd3 {[%clk 0:03:03]}  O-O {[%clk 0:02:57]} 8. Qc2 {[%clk 0:03:04]}  Re8+ {[%clk 0:02:57]} 9. Ne2 {[%clk 0:03:03]}  h6 {[%clk 0:02:52]} 10. Bd2 {[%clk 0:03:03]}  Nd7 {[%clk 0:02:50]} 11. O-O-O {[%clk 0:03:01]}  Qa5 {[%clk 0:02:45]} 12. Kb1 {[%clk 0:03:01]}  b5 {[%clk 0:02:26]} 13. c4 {[%clk 0:02:54]}  Bb4 {[%clk 0:02:23]} 14. c5 {[%clk 0:02:46]}  Bxd2 {[%clk 0:02:20]} 15. Qxd2 {[%clk 0:02:47]}  Qc7 {[%clk 0:02:05]} 16. Ng3 {[%clk 0:02:41]}  Nf8 {[%clk 0:02:01]} 17. Nf5 {[%clk 0:02:35]}  Bxf5 {[%clk 0:01:59]} 18. Bxf5 {[%clk 0:02:36]}  Red8 {[%clk 0:01:57]} 19. Rhe1 {[%clk 0:01:59]}  Qxh2 {[%clk 0:01:48]} 20. g3 {[%clk 0:01:58]}  Qh5 {[%clk 0:01:37]} 21. Be4 {[%clk 0:01:53]}  Rac8 {[%clk 0:01:30]} 22. Qa5 {[%clk 0:01:49]}  Re8 {[%clk 0:01:17]} 23. Qxa7 {[%clk 0:01:24]}  Rxe4 {[%clk 0:01:10]} 24. Rh1 {[%clk 0:01:17]}  Qd5 {[%clk 0:01:04]} 25. Qb7 {[%clk 0:01:12]}  Rd8 {[%clk 0:00:56]} 26. f3 {[%clk 0:00:58]}  Re2 {[%clk 0:00:42]} 27. Qc7 {[%clk 0:00:44]}  Ra8 {[%clk 0:00:31]} 28. a3 {[%clk 0:00:41]}  Qf5+ {[%clk 0:00:28]} 29. Ka1 {[%clk 0:00:39]}  Qc2 {[%clk 0:00:27]} 30. Rb1 {[%clk 0:00:36]}  Rxa3+ {[%clk 0:00:25]} 0-1


[Site "https://www.chess.com"]

[Event "Titled Tuesday Blitz May 16 Late 2023"]
[White "Gutkin, Ilya"]
[Black "Kim, Sergey"]
[WhiteFideId "16203470"]
[BlackFideId "13700570"]
[WhiteElo "2265"]
[BlackElo "2594"]
[Result "1-0"]
[Round "05"]
[TimeControl "180+2"]
[Date "2023.05.16"]
[WhiteClock "0:00:06"]
[BlackClock "0:00:10"]

1. Nf3 {[%clk 0:03:00]}  Nf6 {[%clk 0:02:59]} 2. g3 {[%clk 0:03:01]}  g6 {[%clk 0:02:59]} 3. b3 {[%clk 0:03:01]}  Bg7 {[%clk 0:03:00]} 4. Bb2 {[%clk 0:03:02]}  d6 {[%clk 0:03:00]} 5. d4 {[%clk 0:03:01]}  O-O {[%clk 0:03:01]} 6. Bg2 {[%clk 0:03:02]}  e5 {[%clk 0:03:01]} 7. dxe5 {[%clk 0:03:03]}  Nfd7 {[%clk 0:03:01]} 8. c4 {[%clk 0:03:01]}  dxe5 {[%clk 0:03:01]} 9. O-O {[%clk 0:03:00]}  e4 {[%clk 0:02:54]} 10. Bxg7 {[%clk 0:02:27]}  exf3 {[%clk 0:02:54]} 11. Bxf8 {[%clk 0:02:28]}  fxg2 {[%clk 0:02:54]} 12. Kxg2 {[%clk 0:02:25]}  Qxf8 {[%clk 0:02:51]} 13. Nc3 {[%clk 0:02:25]}  c6 {[%clk 0:02:49]} 14. Qd4 {[%clk 0:02:18]}  Qc5 {[%clk 0:02:40]} 15. Rfd1 {[%clk 0:02:17]}  Na6 {[%clk 0:02:34]} 16. Ne4 {[%clk 0:02:14]}  Qxd4 {[%clk 0:02:14]} 17. Rxd4 {[%clk 0:02:15]}  Kf8 {[%clk 0:02:10]} 18. Rad1 {[%clk 0:02:12]}  Ke7 {[%clk 0:02:10]} 19. Nd6 {[%clk 0:02:00]}  Nf6 {[%clk 0:02:05]} 20. e4 {[%clk 0:01:45]}  Nc5 {[%clk 0:01:57]} 21. e5 {[%clk 0:01:40]}  Ne8 {[%clk 0:01:42]} 22. b4 {[%clk 0:01:26]}  Ne6 {[%clk 0:01:36]} 23. Nxc8+ {[%clk 0:01:26]}  Rxc8 {[%clk 0:01:36]} 24. Rd7+ {[%clk 0:01:26]}  Kf8 {[%clk 0:01:33]} 25. Rxb7 {[%clk 0:01:27]}  a6 {[%clk 0:01:32]} 26. a4 {[%clk 0:01:01]}  N8c7 {[%clk 0:01:27]} 27. Rd6 {[%clk 0:00:58]}  Ne8 {[%clk 0:01:18]} 28. Rdd7 {[%clk 0:00:58]}  N8c7 {[%clk 0:01:12]} 29. a5 {[%clk 0:00:48]}  Ke8 {[%clk 0:01:11]} 30. Rd6 {[%clk 0:00:48]}  Nd8 {[%clk 0:01:08]} 31. Rb6 {[%clk 0:00:30]}  Ra8 {[%clk 0:01:01]} 32. f4 {[%clk 0:00:27]}  Ke7 {[%clk 0:01:00]} 33. g4 {[%clk 0:00:19]}  Nce6 {[%clk 0:00:34]} 34. Kf3 {[%clk 0:00:16]}  Nc7 {[%clk 0:00:32]} 35. f5 {[%clk 0:00:13]}  Ke8 {[%clk 0:00:31]} 36. Kf4 {[%clk 0:00:11]}  Ke7 {[%clk 0:00:28]} 37. Kg5 {[%clk 0:00:11]}  gxf5 {[%clk 0:00:27]} 38. gxf5 {[%clk 0:00:11]}  Ne8 {[%clk 0:00:24]} 39. f6+ {[%clk 0:00:10]}  Kf8 {[%clk 0:00:24]} 40. Rxd8 {[%clk 0:00:08]}  Rxd8 {[%clk 0:00:23]} 41. Rxc6 {[%clk 0:00:08]}  Rb8 {[%clk 0:00:21]} 42. Rxa6 {[%clk 0:00:07]}  Rxb4 {[%clk 0:00:19]} 43. Rc6 {[%clk 0:00:08]}  Ra4 {[%clk 0:00:18]} 44. a6 {[%clk 0:00:08]}  Ra2 {[%clk 0:00:17]} 45. h4 {[%clk 0:00:07]}  Rg2+ {[%clk 0:00:16]} 46. Kf5 {[%clk 0:00:07]}  Rf2+ {[%clk 0:00:16]} 47. Ke4 {[%clk 0:00:07]}  Ra2 {[%clk 0:00:16]} 48. Kd5 {[%clk 0:00:07]}  Ra5+ {[%clk 0:00:15]} 49. Kd4 {[%clk 0:00:06]}  Ra4 {[%clk 0:00:15]} 50. Kc5 {[%clk 0:00:07]}  Ra5+ {[%clk 0:00:15]} 51. Kb6 {[%clk 0:00:06]}  Rxe5 {[%clk 0:00:15]} 52. a7 {[%clk 0:00:06]}  Re1 {[%clk 0:00:15]} 53. a8=Q {[%clk 0:00:07]}  Rb1+ {[%clk 0:00:16]} 54. Kc5 {[%clk 0:00:07]}  Rg1 {[%clk 0:00:10]} 55. Rc8 {[%clk 0:00:06]} 1-0


[Site "https://www.chess.com"]

[Event "Titled Tuesday Blitz May 16 Late 2023"]
[White "Aggelis, Nikolaos"]
[Black "mohsengabr2002"]
[WhiteFideId "4213220"]
[WhiteElo "2189"]
[BlackElo "2365"]
[Result "1-0"]
[Round "05"]
[TimeControl "180+2"]
[Date "2023.05.16"]
[WhiteClock "0:00:19"]
[BlackClock "0:00:06"]

1. f4 {[%clk 0:02:33]}  d5 {[%clk 0:02:59]} 2. Nc3 {[%clk 0:02:30]}  c5 {[%clk 0:02:57]} 3. e4 {[%clk 0:02:26]}  d4 {[%clk 0:02:55]} 4. Nce2 {[%clk 0:02:22]}  g6 {[%clk 0:02:54]} 5. d3 {[%clk 0:02:14]}  Bg7 {[%clk 0:02:54]} 6. Nf3 {[%clk 0:02:13]}  Nf6 {[%clk 0:02:54]} 7. Ne5 {[%clk 0:02:10]}  O-O {[%clk 0:02:52]} 8. Ng1 {[%clk 0:02:08]}  Ne8 {[%clk 0:02:50]} 9. Be2 {[%clk 0:02:01]}  f6 {[%clk 0:02:49]} 10. Nef3 {[%clk 0:01:59]}  Nc6 {[%clk 0:02:47]} 11. c4 {[%clk 0:01:45]}  a6 {[%clk 0:02:43]} 12. Bd2 {[%clk 0:01:42]}  b5 {[%clk 0:02:42]} 13. Qc2 {[%clk 0:01:34]}  b4 {[%clk 0:02:30]} 14. Nh3 {[%clk 0:01:30]}  Bxh3 {[%clk 0:02:25]} 15. gxh3 {[%clk 0:01:31]}  Qd7 {[%clk 0:02:25]} 16. O-O-O {[%clk 0:01:26]}  a5 {[%clk 0:02:24]} 17. Rdg1 {[%clk 0:01:23]}  a4 {[%clk 0:02:21]} 18. Qd1 {[%clk 0:01:23]}  Qxh3 {[%clk 0:02:18]} 19. Rg3 {[%clk 0:01:22]}  Qd7 {[%clk 0:02:14]} 20. h4 {[%clk 0:01:22]}  e5 {[%clk 0:01:52]} 21. h5 {[%clk 0:01:20]}  exf4 {[%clk 0:01:46]} 22. Bxf4 {[%clk 0:01:20]}  g5 {[%clk 0:01:46]} 23. h6 {[%clk 0:01:18]}  gxf4 {[%clk 0:01:36]} 24. hxg7 {[%clk 0:01:15]}  fxg3 {[%clk 0:01:33]} 25. gxf8=Q+ {[%clk 0:01:15]}  Kxf8 {[%clk 0:01:34]} 26. Nh4 {[%clk 0:01:12]}  Ng7 {[%clk 0:01:25]} 27. Qe1 {[%clk 0:01:05]}  Qd6 {[%clk 0:01:24]} 28. Ng2 {[%clk 0:00:58]}  b3 {[%clk 0:01:21]} 29. a3 {[%clk 0:00:57]}  Qe5 {[%clk 0:01:03]} 30. Rxh7 {[%clk 0:00:54]}  Qg5+ {[%clk 0:01:02]} 31. Qd2 {[%clk 0:00:49]}  Qxd2+ {[%clk 0:00:42]} 32. Kxd2 {[%clk 0:00:50]}  Kf7 {[%clk 0:00:42]} 33. Rh3 {[%clk 0:00:49]}  Ne5 {[%clk 0:00:42]} 34. Rxg3 {[%clk 0:00:49]}  Rh8 {[%clk 0:00:42]} 35. Nf4 {[%clk 0:00:41]}  Rh1 {[%clk 0:00:38]} 36. Bd1 {[%clk 0:00:39]}  Rh2+ {[%clk 0:00:36]} 37. Rg2 {[%clk 0:00:39]}  Rh4 {[%clk 0:00:31]} 38. Rf2 {[%clk 0:00:36]}  Ne6 {[%clk 0:00:20]} 39. Nd5 {[%clk 0:00:36]}  Nd7 {[%clk 0:00:18]} 40. Rg2 {[%clk 0:00:27]}  Rh3 {[%clk 0:00:16]} 41. Bg4 {[%clk 0:00:26]}  Rh4 {[%clk 0:00:15]} 42. Bf5 {[%clk 0:00:23]}  Ng7 {[%clk 0:00:14]} 43. Bg6+ {[%clk 0:00:22]}  Ke6 {[%clk 0:00:14]} 44. Rf2 {[%clk 0:00:20]}  Rh1 {[%clk 0:00:11]} 45. Bf5+ {[%clk 0:00:18]}  Nxf5 {[%clk 0:00:10]} 46. exf5+ {[%clk 0:00:19]}  Kd6 {[%clk 0:00:10]} 47. Re2 {[%clk 0:00:19]}  Ne5 {[%clk 0:00:09]} 48. Nxf6 {[%clk 0:00:18]}  Rh2 {[%clk 0:00:09]} 49. Ne4+ {[%clk 0:00:13]}  Kc6 {[%clk 0:00:07]} 50. Rxh2 {[%clk 0:00:14]}  Nf3+ {[%clk 0:00:07]} 51. Ke2 {[%clk 0:00:14]}  Nxh2 {[%clk 0:00:08]} 52. Nf2 {[%clk 0:00:15]}  Kd6 {[%clk 0:00:07]} 53. Ne4+ {[%clk 0:00:15]}  Ke5 {[%clk 0:00:07]} 54. Nxc5 {[%clk 0:00:15]}  Ng4 {[%clk 0:00:07]} 55. Nxa4 {[%clk 0:00:15]}  Ne3 {[%clk 0:00:05]} 56. Nc5 {[%clk 0:00:15]}  Nxf5 {[%clk 0:00:03]} 57. Nxb3 {[%clk 0:00:15]}  Nd6 {[%clk 0:00:04]} 58. Kd2 {[%clk 0:00:16]}  Nf5 {[%clk 0:00:03]} 59. Nc1 {[%clk 0:00:16]}  Kd6 {[%clk 0:00:04]} 60. Ne2 {[%clk 0:00:16]}  Kc5 {[%clk 0:00:05]} 61. b4+ {[%clk 0:00:16]}  Kb6 {[%clk 0:00:05]} 62. Kc2 {[%clk 0:00:17]}  Ka6 {[%clk 0:00:05]} 63. Kb3 {[%clk 0:00:17]}  Kb6 {[%clk 0:00:05]} 64. c5+ {[%clk 0:00:18]}  Kb5 {[%clk 0:00:05]} 65. a4+ {[%clk 0:00:18]}  Kc6 {[%clk 0:00:05]} 66. Kc4 {[%clk 0:00:19]}  Ne3+ {[%clk 0:00:06]} 67. Kxd4 {[%clk 0:00:19]}  Nc2+ {[%clk 0:00:07]} 68. Kc4 {[%clk 0:00:20]}  Na3+ {[%clk 0:00:07]} 69. Kb3 {[%clk 0:00:20]}  Nb1 {[%clk 0:00:07]} 70. d4 {[%clk 0:00:20]}  Kd5 {[%clk 0:00:08]} 71. Nc3+ {[%clk 0:00:20]}  Kxd4 {[%clk 0:00:06]} 72. Nxb1 {[%clk 0:00:19]} 1-0


[Site "https://www.chess.com"]

[Event "Titled Tuesday Blitz May 16 Late 2023"]
[White "cristianserban1"]
[Black "Hoffmann, Asa"]
[BlackFideId "2001470"]
[WhiteElo "2518"]
[BlackElo "2117"]
[Result "1-0"]
[Round "05"]
[TimeControl "180+2"]
[Date "2023.05.16"]
[WhiteClock "0:00:04"]
[BlackClock "0:00:00"]

1. d4 {[%clk 0:02:58]}  Nf6 {[%clk 0:02:54]} 2. Bf4 {[%clk 0:02:58]}  d6 {[%clk 0:02:52]} 3. Nf3 {[%clk 0:02:55]}  Bg4 {[%clk 0:02:52]} 4. c4 {[%clk 0:02:50]}  Nbd7 {[%clk 0:02:52]} 5. Qb3 {[%clk 0:02:36]}  b6 {[%clk 0:02:50]} 6. Nbd2 {[%clk 0:02:31]}  g6 {[%clk 0:02:34]} 7. h3 {[%clk 0:02:28]}  Bxf3 {[%clk 0:02:29]} 8. Nxf3 {[%clk 0:02:27]}  Bg7 {[%clk 0:02:29]} 9. e3 {[%clk 0:02:27]}  O-O {[%clk 0:02:28]} 10. Bd3 {[%clk 0:02:27]}  e5 {[%clk 0:02:24]} 11. dxe5 {[%clk 0:02:25]}  Nc5 {[%clk 0:02:24]} 12. Qc2 {[%clk 0:02:23]}  dxe5 {[%clk 0:02:17]} 13. Nxe5 {[%clk 0:02:23]}  Nh5 {[%clk 0:02:16]} 14. Rd1 {[%clk 0:02:14]}  Nxf4 {[%clk 0:02:11]} 15. exf4 {[%clk 0:02:14]}  Qe7 {[%clk 0:01:49]} 16. O-O {[%clk 0:02:11]}  Rfe8 {[%clk 0:01:33]} 17. Rfe1 {[%clk 0:02:05]}  Qh4 {[%clk 0:01:26]} 18. Qc1 {[%clk 0:01:49]}  Bh6 {[%clk 0:01:20]} 19. Ng4 {[%clk 0:01:42]}  Bg7 {[%clk 0:01:12]} 20. Bf1 {[%clk 0:01:35]}  h5 {[%clk 0:01:10]} 21. g3 {[%clk 0:01:32]}  Rxe1 {[%clk 0:01:03]} 22. gxh4 {[%clk 0:01:31]}  Rxd1 {[%clk 0:01:03]} 23. Qxd1 {[%clk 0:01:32]}  hxg4 {[%clk 0:01:02]} 24. hxg4 {[%clk 0:01:33]}  Re8 {[%clk 0:00:58]} 25. b4 {[%clk 0:01:26]}  Ne6 {[%clk 0:00:57]} 26. f5 {[%clk 0:01:22]}  Nd4 {[%clk 0:00:55]} 27. fxg6 {[%clk 0:01:15]}  fxg6 {[%clk 0:00:52]} 28. Qd3 {[%clk 0:01:15]}  Kf7 {[%clk 0:00:47]} 29. h5 {[%clk 0:01:12]}  gxh5 {[%clk 0:00:46]} 30. gxh5 {[%clk 0:01:13]}  Re6 {[%clk 0:00:42]} 31. Bh3 {[%clk 0:01:09]}  Rh6 {[%clk 0:00:34]} 32. Bg4 {[%clk 0:01:09]}  c5 {[%clk 0:00:33]} 33. bxc5 {[%clk 0:01:07]}  bxc5 {[%clk 0:00:33]} 34. Qa3 {[%clk 0:00:55]}  Rc6 {[%clk 0:00:27]} 35. Qxa7+ {[%clk 0:00:54]}  Kf6 {[%clk 0:00:26]} 36. a4 {[%clk 0:00:50]}  Bh6 {[%clk 0:00:23]} 37. Qh7 {[%clk 0:00:46]}  Kg5 {[%clk 0:00:23]} 38. Qg8+ {[%clk 0:00:35]}  Kf4 {[%clk 0:00:21]} 39. f3 {[%clk 0:00:23]}  Bg5 {[%clk 0:00:19]} 40. Kg2 {[%clk 0:00:16]}  Rb6 {[%clk 0:00:19]} 41. Qf7+ {[%clk 0:00:15]}  Ke3 {[%clk 0:00:17]} 42. Qe8+ {[%clk 0:00:14]}  Kd2 {[%clk 0:00:13]} 43. a5 {[%clk 0:00:12]}  Rb2 {[%clk 0:00:12]} 44. a6 {[%clk 0:00:09]}  Bf4 {[%clk 0:00:12]} 45. Bd7 {[%clk 0:00:03]}  Kc3+ {[%clk 0:00:11]} 46. Kh3 {[%clk 0:00:04]}  Rh2+ {[%clk 0:00:08]} 47. Kg4 {[%clk 0:00:04]}  Bd6 {[%clk 0:00:06]} 48. Qe3+ {[%clk 0:00:04]}  Kxc4 {[%clk 0:00:05]} 49. Be6+ {[%clk 0:00:03]}  Nxe6 {[%clk 0:00:04]} 50. Qxe6+ {[%clk 0:00:04]}  Kc3 {[%clk 0:00:03]} 51. Qxd6 {[%clk 0:00:04]}  c4 {[%clk 0:00:00]} 52. Qxh2 {[%clk 0:00:04]} 1-0


[Site "https://www.chess.com"]

[Event "Titled Tuesday Blitz May 16 Late 2023"]
[White "Ilkhomi, Jaloliddin"]
[Black "Gerbelli Neto, Eduardo"]
[WhiteFideId "14700948"]
[BlackFideId "2103281"]
[WhiteElo "2045"]
[BlackElo "2178"]
[Result "1-0"]
[Round "05"]
[TimeControl "180+2"]
[Date "2023.05.16"]
[WhiteClock "0:01:56"]
[BlackClock "0:00:08"]

1. Nf3 {[%clk 0:02:59]}  Nf6 {[%clk 0:02:59]} 2. d4 {[%clk 0:02:50]}  d5 {[%clk 0:02:59]} 3. Bf4 {[%clk 0:02:51]}  Bf5 {[%clk 0:02:58]} 4. e3 {[%clk 0:02:49]}  e6 {[%clk 0:02:59]} 5. Bd3 {[%clk 0:02:49]}  Bg6 {[%clk 0:02:56]} 6. Ne5 {[%clk 0:02:48]}  Nbd7 {[%clk 0:02:49]} 7. Nxg6 {[%clk 0:02:48]}  hxg6 {[%clk 0:02:49]} 8. Nd2 {[%clk 0:02:48]}  Bd6 {[%clk 0:02:48]} 9. c3 {[%clk 0:02:45]}  Bxf4 {[%clk 0:02:44]} 10. exf4 {[%clk 0:02:46]}  c5 {[%clk 0:02:42]} 11. Nf3 {[%clk 0:02:46]}  cxd4 {[%clk 0:02:39]} 12. Nxd4 {[%clk 0:02:47]}  a6 {[%clk 0:02:32]} 13. g3 {[%clk 0:02:45]}  Nc5 {[%clk 0:02:21]} 14. Qe2 {[%clk 0:02:36]}  O-O {[%clk 0:02:02]} 15. h4 {[%clk 0:02:36]}  Re8 {[%clk 0:01:58]} 16. O-O-O {[%clk 0:02:32]}  b5 {[%clk 0:01:53]} 17. Bc2 {[%clk 0:02:32]}  Rc8 {[%clk 0:01:42]} 18. h5 {[%clk 0:02:32]}  Nxh5 {[%clk 0:01:31]} 19. Rxh5 {[%clk 0:02:32]}  gxh5 {[%clk 0:01:32]} 20. Qxh5 {[%clk 0:02:33]}  Ne4 {[%clk 0:01:19]} 21. Rh1 {[%clk 0:02:32]}  Kf8 {[%clk 0:01:19]} 22. Qh8+ {[%clk 0:02:25]}  Ke7 {[%clk 0:01:19]} 23. Qxg7 {[%clk 0:02:25]}  b4 {[%clk 0:01:15]} 24. Qe5 {[%clk 0:02:15]}  Qc7 {[%clk 0:01:00]} 25. Bxe4 {[%clk 0:02:01]}  Qxe5 {[%clk 0:00:57]} 26. fxe5 {[%clk 0:02:02]}  dxe4 {[%clk 0:00:57]} 27. Kd2 {[%clk 0:02:02]}  bxc3+ {[%clk 0:00:57]} 28. bxc3 {[%clk 0:02:03]}  Rb8 {[%clk 0:00:56]} 29. Nc6+ {[%clk 0:02:03]}  Kd7 {[%clk 0:00:56]} 30. Nxb8+ {[%clk 0:02:04]}  Rxb8 {[%clk 0:00:57]} 31. Kc2 {[%clk 0:02:04]}  Rb5 {[%clk 0:00:56]} 32. Rh7 {[%clk 0:02:04]}  Ke7 {[%clk 0:00:56]} 33. Rh5 {[%clk 0:02:05]}  Rd5 {[%clk 0:00:54]} 34. c4 {[%clk 0:02:00]}  Rd3 {[%clk 0:00:44]} 35. Rh4 {[%clk 0:02:00]}  Rf3 {[%clk 0:00:44]} 36. Rf4 {[%clk 0:02:01]}  Ra3 {[%clk 0:00:31]} 37. Kb2 {[%clk 0:02:00]}  Rd3 {[%clk 0:00:29]} 38. Kc2 {[%clk 0:01:57]}  Ra3 {[%clk 0:00:29]} 39. Kb2 {[%clk 0:01:54]}  Rd3 {[%clk 0:00:29]} 40. Rxe4 {[%clk 0:01:55]}  Rd2+ {[%clk 0:00:29]} 41. Kb3 {[%clk 0:01:56]}  Rxf2 {[%clk 0:00:30]} 42. c5 {[%clk 0:01:56]}  Rf3+ {[%clk 0:00:29]} 43. Kb4 {[%clk 0:01:56]}  Rxg3 {[%clk 0:00:28]} 44. a4 {[%clk 0:01:57]}  Rg1 {[%clk 0:00:26]} 45. c6 {[%clk 0:01:56]}  Rc1 {[%clk 0:00:25]} 46. Rc4 {[%clk 0:01:52]}  Rxc4+ {[%clk 0:00:17]} 47. Kxc4 {[%clk 0:01:52]}  Kd8 {[%clk 0:00:15]} 48. Kc5 {[%clk 0:01:53]}  Kc7 {[%clk 0:00:16]} 49. a5 {[%clk 0:01:53]}  Kc8 {[%clk 0:00:11]} 50. Kd6 {[%clk 0:01:53]}  Kd8 {[%clk 0:00:11]} 51. c7+ {[%clk 0:01:54]}  Kc8 {[%clk 0:00:12]} 52. Ke7 {[%clk 0:01:55]}  Kxc7 {[%clk 0:00:11]} 53. Kf6 {[%clk 0:01:56]}  Kd7 {[%clk 0:00:11]} 54. Kxf7 {[%clk 0:01:54]}  Kc6 {[%clk 0:00:10]} 55. Kxe6 {[%clk 0:01:55]}  Kc7 {[%clk 0:00:11]} 56. Kf7 {[%clk 0:01:55]}  Kd7 {[%clk 0:00:08]} 57. e6+ {[%clk 0:01:56]} 1-0


[Site "https://www.chess.com"]

[Event "Titled Tuesday Blitz May 16 Late 2023"]
[White "Prieto Aranguren, Alain"]
[Black "Ismayil, Malak"]
[WhiteFideId "2268906"]
[BlackFideId "13412604"]
[WhiteElo "2209"]
[BlackElo "1868"]
[Result "1-0"]
[Round "05"]
[TimeControl "180+2"]
[Date "2023.05.16"]
[WhiteClock "0:00:47"]
[BlackClock "0:01:37"]

1. e4 {[%clk 0:02:26]}  e5 {[%clk 0:02:59]} 2. Nf3 {[%clk 0:02:26]}  Nc6 {[%clk 0:02:59]} 3. Bb5 {[%clk 0:02:26]}  a6 {[%clk 0:03:00]} 4. Bxc6 {[%clk 0:02:25]}  dxc6 {[%clk 0:03:00]} 5. d4 {[%clk 0:02:26]}  exd4 {[%clk 0:03:00]} 6. Qxd4 {[%clk 0:02:26]}  Qxd4 {[%clk 0:02:59]} 7. Nxd4 {[%clk 0:02:25]}  Nf6 {[%clk 0:03:00]} 8. f3 {[%clk 0:02:24]}  Bd7 {[%clk 0:02:58]} 9. Nb3 {[%clk 0:02:24]}  O-O-O {[%clk 0:02:58]} 10. Be3 {[%clk 0:02:24]}  Bd6 {[%clk 0:02:58]} 11. Nc3 {[%clk 0:02:22]}  Rhe8 {[%clk 0:02:59]} 12. O-O-O {[%clk 0:02:21]}  Be6 {[%clk 0:02:52]} 13. Nc5 {[%clk 0:02:17]}  Nd7 {[%clk 0:02:42]} 14. Nxe6 {[%clk 0:02:16]}  Rxe6 {[%clk 0:02:42]} 15. Ne2 {[%clk 0:02:04]}  Ne5 {[%clk 0:02:42]} 16. Nf4 {[%clk 0:01:59]}  Ree8 {[%clk 0:02:42]} 17. Nd3 {[%clk 0:01:51]}  Nc4 {[%clk 0:02:41]} 18. Bf4 {[%clk 0:01:49]}  Bxf4+ {[%clk 0:02:33]} 19. Nxf4 {[%clk 0:01:48]}  g5 {[%clk 0:02:32]} 20. Nh5 {[%clk 0:01:38]}  Ne3 {[%clk 0:02:30]} 21. Rdg1 {[%clk 0:01:27]}  f5 {[%clk 0:02:23]} 22. Nf6 {[%clk 0:01:18]}  Re7 {[%clk 0:02:17]} 23. exf5 {[%clk 0:01:18]}  Nxf5 {[%clk 0:02:13]} 24. Ne4 {[%clk 0:01:17]}  h6 {[%clk 0:02:13]} 25. Rd1 {[%clk 0:01:14]}  Rde8 {[%clk 0:02:10]} 26. Rhe1 {[%clk 0:01:10]}  Nh4 {[%clk 0:02:08]} 27. Rd2 {[%clk 0:01:04]}  Ng6 {[%clk 0:02:06]} 28. Rde2 {[%clk 0:00:59]}  Kb8 {[%clk 0:02:06]} 29. Ng3 {[%clk 0:00:56]}  Rxe2 {[%clk 0:01:53]} 30. Rxe2 {[%clk 0:00:55]}  Rxe2 {[%clk 0:01:54]} 31. Nxe2 {[%clk 0:00:56]}  Kc8 {[%clk 0:01:55]} 32. g3 {[%clk 0:00:52]}  Kd7 {[%clk 0:01:55]} 33. Kd2 {[%clk 0:00:53]}  Ke6 {[%clk 0:01:56]} 34. Ke3 {[%clk 0:00:53]}  c5 {[%clk 0:01:54]} 35. f4 {[%clk 0:00:53]}  gxf4+ {[%clk 0:01:51]} 36. Nxf4+ {[%clk 0:00:53]}  Nxf4 {[%clk 0:01:50]} 37. Kxf4 {[%clk 0:00:53]}  Kf6 {[%clk 0:01:51]} 38. g4 {[%clk 0:00:52]}  b5 {[%clk 0:01:50]} 39. h4 {[%clk 0:00:52]}  c4 {[%clk 0:01:47]} 40. Ke4 {[%clk 0:00:47]}  c6 {[%clk 0:01:37]} 41. Kd4 {[%clk 0:00:47]} 1-0


[Site "https://www.chess.com"]

[Event "Titled Tuesday Blitz May 16 Late 2023"]
[White "Kostiukov, Alexandr"]
[Black "Ollier, Pablo"]
[WhiteFideId "14108100"]
[BlackFideId "652318"]
[WhiteElo "2202"]
[BlackElo "2498"]
[Result "0-1"]
[Round "05"]
[TimeControl "180+2"]
[Date "2023.05.16"]
[WhiteClock "0:00:00"]
[BlackClock "0:00:47"]

1. g3 {[%clk 0:02:52]}  d5 {[%clk 0:02:59]} 2. Bg2 {[%clk 0:02:52]}  Nf6 {[%clk 0:02:59]} 3. d3 {[%clk 0:02:52]}  c5 {[%clk 0:02:56]} 4. e4 {[%clk 0:02:52]}  dxe4 {[%clk 0:02:54]} 5. dxe4 {[%clk 0:02:53]}  Qxd1+ {[%clk 0:02:52]} 6. Kxd1 {[%clk 0:02:54]}  Nc6 {[%clk 0:02:52]} 7. f3 {[%clk 0:02:55]}  Bd7 {[%clk 0:02:52]} 8. Be3 {[%clk 0:02:55]}  O-O-O {[%clk 0:02:49]} 9. Nd2 {[%clk 0:02:53]}  e6 {[%clk 0:02:44]} 10. Nh3 {[%clk 0:02:49]}  Rg8 {[%clk 0:02:39]} 11. c3 {[%clk 0:02:43]}  h6 {[%clk 0:02:30]} 12. Nf2 {[%clk 0:02:41]}  g5 {[%clk 0:02:30]} 13. Kc2 {[%clk 0:02:37]}  Ne5 {[%clk 0:02:27]} 14. h4 {[%clk 0:02:12]}  g4 {[%clk 0:01:58]} 15. f4 {[%clk 0:02:10]}  Nf3 {[%clk 0:01:58]} 16. Bxf3 {[%clk 0:01:02]}  gxf3 {[%clk 0:01:59]} 17. Rhg1 {[%clk 0:01:02]}  h5 {[%clk 0:01:41]} 18. Nxf3 {[%clk 0:00:55]}  Bc6 {[%clk 0:01:37]} 19. Ng5 {[%clk 0:00:44]}  Rg7 {[%clk 0:01:20]} 20. c4 {[%clk 0:00:37]}  Be7 {[%clk 0:01:10]} 21. e5 {[%clk 0:00:35]}  Nh7 {[%clk 0:01:10]} 22. Rad1 {[%clk 0:00:21]}  Rdg8 {[%clk 0:01:09]} 23. Kc3 {[%clk 0:00:16]}  b6 {[%clk 0:01:07]} 24. b3 {[%clk 0:00:15]}  Nf8 {[%clk 0:01:04]} 25. a3 {[%clk 0:00:14]}  f6 {[%clk 0:01:05]} 26. Nge4 {[%clk 0:00:07]}  fxe5 {[%clk 0:00:56]} 27. fxe5 {[%clk 0:00:08]}  Bxh4 {[%clk 0:00:50]} 28. Nd6+ {[%clk 0:00:00]}  Kb8 {[%clk 0:00:47]} 0-1


[Site "https://www.chess.com"]